fUST/lending_fUST_20250627
["ID","MTS","AMOUNT","RATE_DAILY","PERIOD"]
[368118005,1751029835884,-2700.44,0.00019178,2]
[368118006,1751029835894,-437.48988262,0.00019178,2]
[368118007,1751029835903,-460.0,0.00019178,2]
[368118008,1751029835913,-460.0,0.00019178,2]
[368118009,1751029835924,-1046.99,0.00019178,2]
[368118010,1751029835934,-460.0,0.00019178,2]
[368118011,1751029835943,-460.0,0.00019178,2]
[368118012,1751029835953,-1874.32,0.00019178,2]
[368118013,1751029835963,-460.0,0.00019178,2]
[368118014,1751029835972,-460.0,0.00019178,2]
[368118015,1751029835982,-460.0,0.00019178,2]
[368118016,1751029835992,-460.0,0.00019178,2]
[368118017,1751029836001,-460.0,0.00019178,2]
[368118018,1751029836011,-228.52,0.00019178,2]
[368118019,1751029836020,-460.0,0.00019178,2]
[368118020,1751029836029,-460.0,0.00019178,2]
[368118021,1751029836040,-462.01604624,0.00019178,2]
[368118022,1751029836049,-460.0,0.00019178,2]
[368118023,1751029836059,-460.0,0.00019178,2]
[368118024,1751029836068,-460.0,0.00019178,2]
[368118025,1751029836077,-460.0,0.00019178,2]
[368118026,1751029836087,-460.0,0.00019178,2]
[368118027,1751029836096,-1037.07,0.00019178,2]
[368118028,1751029836106,-460.0,0.00019178,2]
[368118029,1751029836115,-460.0,0.00019178,2]
[368118030,1751029836124,-460.0,0.00019178,2]
[368118031,1751029836135,-460.0,0.00019178,2]
[368118032,1751029836146,-460.0,0.00019178,2]
[368118033,1751029836156,-500.0,0.00019178,2]
[368118034,1751029836166,-500.0,0.00019178,2]
[368118035,1751029836176,-500.0,0.00019178,2]
[368118036,1751029836185,-500.0,0.00019178,2]
[368118037,1751029836195,-500.0,0.00019178,2]
[368118038,1751029836205,-500.0,0.00019178,2]
[368118039,1751029836215,-500.0,0.00019178,2]
[368118040,1751029836224,-546.22,0.00019178,2]
[368118041,1751029836234,-460.0,0.00019178,2]
[368118042,1751029836244,-460.0,0.00019178,2]
[368118043,1751029836255,-460.0,0.00019178,2]
[368118044,1751029836265,-460.0,0.00019178,2]
[368118045,1751029836274,-627.06,0.00019178,2]
[368118046,1751029836284,-460.0,0.00019178,2]
[368118047,1751029836293,-197.99460036,0.00019178,2]
[368118048,1751029836302,-460.0,0.00019178,2]
[368118049,1751029836311,-433.16174355,0.00019178,2]
[368118050,1751029836321,-460.0,0.00019178,2]
[368118051,1751029836331,-460.0,0.00019178,2]
[368118052,1751029836341,-460.0,0.00019178,2]
[368118053,1751029836350,-460.0,0.00019178,2]
[368118054,1751029836359,-460.0,0.00019178,2]
[368118055,1751029836369,-665.9,0.00019178,2]
[368118056,1751029836378,-460.0,0.00019178,2]
[368118057,1751029836387,-460.0,0.00019178,2]
[368118058,1751029836397,-460.0,0.00019178,2]
[368118059,1751029836406,-460.0,0.00019178,2]
[368118060,1751029836415,-460.0,0.00019178,2]
[368118061,1751029836425,-3786.78,0.00019178,2]
[368118062,1751029836434,-460.0,0.00019178,2]
[368118063,1751029836443,-460.0,0.00019178,2]
[368118064,1751029836453,-460.0,0.00019178,2]
[368118065,1751029836462,-727.16,0.00019178,2]
[368118066,1751029836471,-1216.38,0.00019178,2]
[368118067,1751029836480,-460.0,0.00019178,2]
[368118068,1751029836489,-460.0,0.00019178,2]
[368118069,1751029836499,-460.0,0.00019178,2]
[368118070,1751029836508,-473.51,0.00019178,2]
[368118071,1751029836518,-460.0,0.00019178,2]
[368118072,1751029836527,-195.11150249,0.00019178,2]
[368118073,1751029836536,-3017.37,0.00019178,2]
[368118074,1751029836546,-4525.56,0.00019178,2]
[368118075,1751029836556,-954.2,0.00019178,2]
[368118076,1751029836565,-460.0,0.00019178,2]
[368118077,1751029836574,-460.0,0.00019178,2]
[368118078,1751029836583,-515.06,0.00019178,2]
[368118079,1751029836592,-2147.92,0.00019178,2]
[368118080,1751029836601,-460.0,0.00019178,2]
[368118081,1751029836611,-460.0,0.00019178,2]
[368118082,1751029836620,-460.0,0.00019178,2]
[368118083,1751029836630,-848.16,0.00019178,2]
[368118084,1751029836639,-460.0,0.00019178,2]
[368118085,1751029836654,-460.0,0.00019178,2]
[368118086,1751029836663,-464.02,0.00019178,2]
[368118087,1751029836673,-431.66728058,0.00019178,2]
[368118088,1751029836682,-460.0,0.00019178,2]
[368118089,1751029836691,-460.0,0.00019178,2]
[368118090,1751029836701,-460.0,0.00019178,2]
[368118091,1751029836710,-460.0,0.00019178,2]
[368118092,1751029836719,-5421.31,0.00019178,2]
[368118093,1751029836728,-460.0,0.00019178,2]
[368118094,1751029836737,-460.0,0.00019178,2]
[368118095,1751029836747,-441.12400738,0.00019178,2]
[368118096,1751029836756,-581.27,0.00019178,2]
[368118097,1751029836766,-460.0,0.00019178,2]
[368118098,1751029836775,-683.54,0.00019178,2]
[368118099,1751029836784,-460.0,0.00019178,2]
[368118100,1751029836793,-460.0,0.00019178,2]
[368118101,1751029836803,-460.0,0.00019178,2]
[368118102,1751029836812,-460.0,0.00019178,2]
[368118103,1751029836822,-530.26968491,0.00019178,2]
[368118104,1751029836835,-358.466093,0.00019178,2]
[368118105,1751029836844,-210.10109945,0.00019305,2]
[368118106,1751029836854,-168.0,0.00019449,2]
[368118107,1751029836863,-460.0,0.00019452,2]
[368118108,1751029836874,-460.0,0.00019452,2]
[368118109,1751029836883,-460.0,0.00019452,2]
[368118110,1751029836893,-460.0,0.00019452,2]
[368118111,1751029836903,-460.0,0.00019452,2]
[368118112,1751029836914,-460.0,0.00019452,2]
[368118113,1751029836925,-460.0,0.00019452,2]
[368118114,1751029836934,-460.0,0.00019452,2]
[368118115,1751029836944,-460.0,0.00019452,2]
[368118116,1751029836953,-460.0,0.00019452,2]
[368118117,1751029836962,-460.0,0.00019452,2]
[368118118,1751029836972,-460.0,0.00019452,2]
[368118119,1751029836981,-460.0,0.00019452,2]
[368118120,1751029836990,-460.0,0.00019452,2]
[368118121,1751029837000,-465.24367281,0.00019452,2]
[368118122,1751029837009,-468.24267076,0.00019452,2]
[368118123,1751029837018,-460.0,0.00019452,2]
[368118124,1751029837028,-460.0,0.00019452,2]
[368118125,1751029837038,-460.0,0.00019452,2]
[368118126,1751029837048,-460.0,0.00019452,2]
[368118127,1751029837057,-460.0,0.00019452,2]
[368118128,1751029837066,-460.0,0.00019452,2]
[368118129,1751029837076,-460.0,0.00019452,2]
[368118130,1751029837085,-460.0,0.00019452,2]
[368118131,1751029837095,-460.0,0.00019452,2]
[368118132,1751029837104,-460.0,0.00019452,2]
[368118133,1751029837113,-460.0,0.00019452,2]
[368118134,1751029837123,-443.88759927,0.00019452,2]
[368118135,1751029837132,-460.0,0.00019452,2]
[368118136,1751029837141,-328.16851035,0.00019452,2]
[368118137,1751029837150,-460.0,0.00019452,2]
[368118138,1751029837159,-460.0,0.00019452,2]
[368118139,1751029837169,-452.01401036,0.00019452,2]
[368118140,1751029837178,-460.0,0.00019452,2]
[368118141,1751029837188,-460.0,0.00019452,2]
[368118142,1751029837198,-460.0,0.00019452,2]
[368118143,1751029837208,-460.0,0.00019452,2]
[368118144,1751029837217,-519.00233649,0.00019452,2]
[368118145,1751029837226,-460.0,0.00019452,2]
[368118146,1751029837235,-460.0,0.00019452,2]
[368118147,1751029837245,-460.0,0.00019452,2]
[368118148,1751029837254,-477.54,0.00019452,2]
[368118149,1751029837264,-460.0,0.00019452,2]
[368118150,1751029837273,-585.67308041,0.00019452,2]
[368118151,1751029837282,-962.79,0.00019452,2]
[368118152,1751029837291,-460.0,0.00019452,2]
[368118153,1751029837335,-462.01506123,0.00019452,2]
[368118154,1751029837344,-460.0,0.00019452,2]
[368118155,1751029837353,-460.0,0.00019452,2]
[368118156,1751029837363,-255.86,0.00019452,2]
[368118158,1751029837372,-460.0,0.00019452,2]
[368118159,1751029837381,-460.0,0.00019452,2]
[368118161,1751029837390,-460.0,0.00019452,2]
[368118163,1751029837399,-478.37098556,0.00019452,2]
[368118165,1751029837409,-460.0,0.00019452,2]
[368118166,1751029837418,-199.62472061,0.00019452,2]
[368118167,1751029837427,-460.0,0.00019452,2]
[368118168,1751029837437,-460.0,0.00019452,2]
[368118169,1751029837446,-460.0,0.00019452,2]
[368118170,1751029837455,-460.0,0.00019452,2]
[368118171,1751029837464,-465.28147782,0.00019452,2]
[368118172,1751029837474,-428.2852463,0.00019452,2]
[368118173,1751029837484,-460.0,0.00019452,2]
[368118174,1751029837493,-460.0,0.00019452,2]
[368118175,1751029837503,-460.0,0.00019452,2]
[368118176,1751029837512,-460.0,0.00019452,2]
[368118177,1751029837521,-460.0,0.00019452,2]
[368118179,1751029837530,-460.0,0.00019452,2]
[368118181,1751029837539,-460.0,0.00019452,2]
[368118183,1751029837549,-460.0,0.00019452,2]
[368118185,1751029837558,-460.0,0.00019452,2]
[368118187,1751029837567,-460.0,0.00019452,2]
[368118189,1751029837576,-460.0,0.00019452,2]
[368118190,1751029837585,-460.0,0.00019452,2]
[368118192,1751029837594,-460.0,0.00019452,2]
[368118194,1751029837604,-464.58629029,0.00019452,2]
[368118196,1751029837613,-470.52539763,0.00019452,2]
[368118198,1751029837622,-460.0,0.00019452,2]
[368118200,1751029837632,-460.0,0.00019452,2]
[368118202,1751029837641,-460.0,0.00019452,2]
[368118204,1751029837650,-460.0,0.00019452,2]
[368118206,1751029837659,-460.0,0.00019452,2]
[368118208,1751029837668,-460.0,0.00019452,2]
[368118210,1751029837678,-460.0,0.00019452,2]
[368118212,1751029837687,-460.0,0.00019452,2]
[368118214,1751029837696,-460.0,0.00019452,2]
[368118216,1751029837705,-541.4189717,0.00019452,2]
[368118218,1751029837715,-400.34292741,0.00019452,2]
[368118220,1751029837724,-266.38516053,0.00019452,2]
[368118221,1751029837734,-460.0,0.00019452,2]
[368118223,1751029837743,-581.67089768,0.00019452,2]
[368118225,1751029837753,-460.0,0.00019452,2]
[368118227,1751029837763,-460.0,0.00019452,2]
[368118229,1751029837772,-460.0,0.00019452,2]
[368118231,1751029837781,-460.0,0.00019452,2]
[368118233,1751029837790,-460.0,0.00019452,2]
[368118235,1751029837800,-460.0,0.00019452,2]
[368118237,1751029837809,-460.0,0.00019452,2]
[368118239,1751029837818,-460.0,0.00019452,2]
[368118241,1751029837827,-460.0,0.00019452,2]
[368118243,1751029837838,-460.0,0.00019452,2]
[368118245,1751029837847,-460.0,0.00019452,2]
[368118247,1751029837856,-472.42,0.00019452,2]
[368118249,1751029837865,-460.0,0.00019452,2]
[368118251,1751029837874,-449.63948808,0.00019452,2]
[368118253,1751029837884,-460.0,0.00019452,2]
[368118255,1751029837893,-460.0,0.00019452,2]
[368118257,1751029837903,-460.0,0.00019452,2]
[368118259,1751029837913,-460.0,0.00019452,2]
[368118262,1751029837923,-460.0,0.00019452,2]
[368118264,1751029837933,-536.46974944,0.00019452,2]
[368118265,1751029837942,-480.62471395,0.00019452,2]
[368118267,1751029837952,-460.0,0.00019452,2]
[368118270,1751029837962,-460.0,0.00019452,2]
[368118272,1751029837972,-460.0,0.00019452,2]
[368118274,1751029837981,-460.0,0.00019452,2]
[368118276,1751029837991,-872.16,0.00019452,2]
[368118278,1751029838000,-460.0,0.00019452,2]
[368118280,1751029838010,-460.0,0.00019452,2]
[368118282,1751029838019,-490.28,0.00019452,2]
[368118284,1751029838029,-460.0,0.00019452,2]
[368118286,1751029838038,-460.0,0.00019452,2]
[368118288,1751029838047,-492.84871709,0.00019452,2]
[368118290,1751029838057,-460.0,0.00019452,2]
[368118292,1751029838066,-502.96695621,0.00019452,2]
[368118294,1751029838075,-460.0,0.00019452,2]
[368118296,1751029838085,-460.0,0.00019452,2]
[368118298,1751029838094,-460.0,0.00019452,2]
[368118300,1751029838103,-460.0,0.00019452,2]
[368118302,1751029838113,-676.53,0.00019452,2]
[368118304,1751029838122,-3577.22,0.00019452,2]
[368118306,1751029838132,-460.0,0.00019452,2]
[368118308,1751029838142,-460.0,0.00019452,2]
[368118310,1751029838151,-460.0,0.00019452,2]
[368118312,1751029838161,-460.0,0.00019452,2]
[368118314,1751029838170,-460.0,0.00019452,2]
[368118316,1751029838179,-1544.03,0.00019452,2]
[368118318,1751029838189,-460.0,0.00019452,2]
[368118320,1751029838197,-1861.18,0.00019452,2]
[368118322,1751029838207,-2946.71,0.00019452,2]
[368118324,1751029838216,-460.0,0.00019452,2]
[368118326,1751029838225,-460.0,0.00019452,2]
[368118328,1751029838234,-460.0,0.00019452,2]
[368118330,1751029838244,-6518.4,0.00019452,2]
[368118332,1751029838254,-460.0,0.00019452,2]
[368118334,1751029838263,-460.0,0.00019452,2]
[368118336,1751029838272,-460.0,0.00019452,2]
[368118338,1751029838282,-1266.37,0.00019452,2]
[368118340,1751029838291,-1132.2,0.00019452,2]
[368118342,1751029838301,-460.0,0.00019452,2]
[368118344,1751029838310,-460.0,0.00019452,2]
[368118346,1751029838320,-765.43,0.00019452,2]
[368118348,1751029838331,-460.0,0.00019452,2]
[368118350,1751029838341,-460.0,0.00019452,2]
[368118352,1751029838350,-460.0,0.00019452,2]
[368118354,1751029838359,-442.92991043,0.00019452,2]
[368118356,1751029838369,-848.57,0.00019452,2]
[368118358,1751029838378,-529.89902784,0.00019452,2]
[368118360,1751029838388,-460.0,0.00019452,2]
[368118362,1751029838397,-5598.03,0.00019452,2]
[368118364,1751029838407,-460.0,0.00019452,2]
[368118366,1751029838417,-807.46,0.00019452,2]
[368118368,1751029838427,-2217.11,0.00019452,2]
[368118370,1751029838437,-851.26,0.00019452,2]
[368118372,1751029838446,-1687.24,0.00019452,2]
[368118374,1751029838455,-397.86975071,0.00019452,2]
[368118377,1751029838465,-150.1569517,0.00019452,2]
[368118379,1751029838476,-464.33,0.00019452,2]
[368118381,1751029838486,-460.0,0.00019452,2]
[368118383,1751029838496,-682.9,0.00019452,2]
[368118385,1751029838506,-460.0,0.00019452,2]
[368118387,1751029838515,-200.0,0.00019452,10]
[368118389,1751029838525,-460.0,0.00019452,2]
[368118391,1751029838534,-460.0,0.00019452,2]
[368118393,1751029838543,-460.0,0.00019452,2]
[368118395,1751029838554,-460.82411113,0.00019452,2]
[368118397,1751029838564,-460.0,0.00019452,2]
[368118399,1751029838574,-460.0,0.00019452,2]
[368118401,1751029838583,-460.0,0.00019452,2]
[368118403,1751029838592,-460.0,0.00019452,2]
[368118405,1751029838602,-460.0,0.00019452,2]
[368118407,1751029838611,-460.0,0.00019452,2]
[368118409,1751029838620,-460.0,0.00019452,2]
[368118411,1751029838630,-460.0,0.00019452,2]
[368118413,1751029838640,-460.0,0.00019452,2]
[368118415,1751029838650,-626.65,0.00019452,2]
[368118417,1751029838659,-778.42,0.00019452,2]
[368118419,1751029838668,-1807.73,0.00019452,2]
[368118420,1751029838677,-2700.44,0.00019452,2]
[368118422,1751029838687,-460.0,0.00019452,2]
[368118424,1751029838696,-1046.99,0.00019452,2]
[368118427,1751029838706,-460.0,0.00019452,2]
[368118429,1751029838716,-460.0,0.00019452,2]
[368118431,1751029838726,-1874.32,0.00019452,2]
[368118433,1751029838735,-460.0,0.00019452,2]
[368118435,1751029838744,-176.59741713,0.00019452,2]
[368118437,1751029838754,-460.0,0.00019452,2]
[368118439,1751029838764,-460.0,0.00019452,2]
[368118441,1751029838773,-460.0,0.00019452,2]
[368118443,1751029838783,-460.0,0.00019452,2]
[368118445,1751029838792,-460.0,0.00019452,2]
[368118447,1751029838802,-1037.07,0.00019452,2]
[368118449,1751029838812,-460.0,0.00019452,2]
[368118450,1751029838821,-460.0,0.00019452,2]
[368118452,1751029838833,-500.0,0.00019452,2]
[368118454,1751029838843,-460.0,0.00019452,2]
[368118457,1751029838853,-627.06,0.00019452,2]
[368118459,1751029838863,-460.0,0.00019452,2]
[368118461,1751029838872,-460.0,0.00019452,2]
[368118463,1751029838882,-460.0,0.00019452,2]
[368118465,1751029838891,-460.0,0.00019452,2]
[368118466,1751029838901,-460.0,0.00019452,2]
[368118468,1751029838912,-665.9,0.00019452,2]
[368118470,1751029838922,-460.0,0.00019452,2]
[368118472,1751029838932,-460.0,0.00019452,2]
[368118474,1751029838941,-460.0,0.00019452,2]
[368118476,1751029838951,-3786.78,0.00019452,2]
[368118478,1751029838960,-460.0,0.00019452,2]
[368118480,1751029838969,-460.0,0.00019452,2]
[368118482,1751029838979,-727.16,0.00019452,2]
[368118484,1751029838988,-1216.38,0.00019452,2]
[368118486,1751029838998,-460.0,0.00019452,2]
[368118488,1751029839008,-460.0,0.00019452,2]
[368118490,1751029839017,-460.0,0.00019452,2]
[368118492,1751029839026,-3017.37,0.00019452,2]
[368118494,1751029839036,-4525.56,0.00019452,2]
[368118496,1751029839045,-954.2,0.00019452,2]
[368118498,1751029839055,-460.0,0.00019452,2]
[368118500,1751029839065,-515.06,0.00019452,2]
[368118502,1751029839075,-2147.92,0.00019452,2]
[368118504,1751029839085,-460.0,0.00019452,2]
[368118506,1751029839094,-460.0,0.00019452,2]
[368118508,1751029839104,-848.16,0.00019452,2]
[368118510,1751029839113,-460.0,0.00019452,2]
[368118512,1751029839123,-464.02,0.00019452,2]
[368118514,1751029839132,-460.0,0.00019452,2]
[368118516,1751029839142,-460.0,0.00019452,2]
[368118518,1751029839152,-5421.31,0.00019452,2]
[368118519,1751029839161,-460.0,0.00019452,2]
[368118521,1751029839171,-581.27,0.00019452,2]
[368118523,1751029839181,-460.0,0.00019452,2]
[368118525,1751029839190,-683.54,0.00019452,2]
[368118527,1751029839200,-460.0,0.00019452,2]
[368118529,1751029839210,-460.0,0.00019452,2]
[368118530,1751029839219,-460.0,0.00019452,2]
[368118532,1751029839229,-1283.0,0.00019454,2]
[368118534,1751029839238,-1283.0,0.00019461,2]
[368118536,1751029839248,-2210.24573643,0.00019509,2]
[368118538,1751029839258,-168.0,0.00019593,2]
[368118539,1751029839267,-500.0,0.00019676,2]
[368118540,1751029839277,-500.0,0.00019676,2]
[368118541,1751029839287,-263.89922912,0.00019679,2]
[368118543,1751029839297,-500.0,0.00019697,2]
[368118544,1751029839306,-500.0,0.00019697,2]
[368118545,1751029839316,-460.0,0.00019726,2]
[368118546,1751029839325,-460.0,0.00019726,2]
[368118547,1751029839336,-460.0,0.00019726,2]
[368118548,1751029839346,-460.0,0.00019726,2]
[368118549,1751029839355,-460.0,0.00019726,2]
[368118550,1751029839365,-460.0,0.00019726,2]
[368118551,1751029839375,-460.0,0.00019726,2]
[368118552,1751029839385,-460.0,0.00019726,2]
[368118553,1751029839394,-460.0,0.00019726,2]
[368118554,1751029839404,-460.0,0.00019726,2]
[368118555,1751029839414,-460.0,0.00019726,2]
[368118556,1751029839423,-460.0,0.00019726,2]
[368118557,1751029839433,-460.0,0.00019726,2]
[368118558,1751029839442,-279.8,0.00019726,2]
[368118559,1751029839451,-232.77,0.00019726,2]
[368118560,1751029839461,-445.58719657,0.00019726,2]
[368118561,1751029839470,-460.0,0.00019726,2]
[368118562,1751029839480,-460.0,0.00019726,2]
[368118563,1751029839490,-460.0,0.00019726,2]
[368118564,1751029839499,-460.0,0.00019726,2]
[368118565,1751029839510,-460.0,0.00019726,2]
[368118566,1751029839519,-460.0,0.00019726,2]
[368118568,1751029839529,-460.0,0.00019726,2]
[368118570,1751029839539,-460.0,0.00019726,2]
[368118571,1751029839548,-460.0,0.00019726,2]
[368118572,1751029839558,-221.68,0.00019726,2]
[368118573,1751029839567,-962.79,0.00019726,2]
[368118574,1751029839577,-460.0,0.00019726,2]
[368118576,1751029839588,-460.0,0.00019726,2]
[368118577,1751029839597,-460.0,0.00019726,2]
[368118578,1751029839606,-460.0,0.00019726,2]
[368118579,1751029839616,-460.0,0.00019726,2]
[368118580,1751029839626,-512.27889865,0.00019726,2]
[368118581,1751029839635,-460.0,0.00019726,2]
[368118582,1751029839644,-460.0,0.00019726,2]
[368118583,1751029839655,-460.0,0.00019726,2]
[368118584,1751029839664,-460.0,0.00019726,2]
[368118585,1751029839674,-460.0,0.00019726,2]
[368118586,1751029839683,-460.0,0.00019726,2]
[368118587,1751029839692,-502.94639883,0.00019726,2]
[368118588,1751029839702,-460.0,0.00019726,2]
[368118589,1751029839711,-460.0,0.00019726,2]
[368118590,1751029839720,-460.0,0.00019726,2]
[368118591,1751029839730,-460.0,0.00019726,2]
[368118592,1751029839739,-460.0,0.00019726,2]
[368118593,1751029839749,-460.0,0.00019726,2]
[368118594,1751029839758,-302.26,0.00019726,2]
[368118596,1751029839768,-460.0,0.00019726,2]
[368118598,1751029839778,-460.0,0.00019726,2]
[368118600,1751029839787,-171.30213755,0.00019726,2]
[368118602,1751029839797,-460.0,0.00019726,2]
[368118604,1751029839806,-460.0,0.00019726,2]
[368118606,1751029839816,-460.0,0.00019726,2]
[368118608,1751029839826,-460.0,0.00019726,2]
[368118609,1751029839838,-460.0,0.00019726,2]
[368118610,1751029839848,-460.0,0.00019726,2]
[368118611,1751029839858,-460.0,0.00019726,2]
[368118612,1751029839868,-460.0,0.00019726,2]
[368118613,1751029839878,-460.0,0.00019726,2]
[368118614,1751029839888,-460.0,0.00019726,2]
[368118615,1751029839897,-460.0,0.00019726,2]
[368118616,1751029839908,-460.0,0.00019726,2]
[368118617,1751029839917,-460.0,0.00019726,2]
[368118618,1751029839927,-460.0,0.00019726,2]
[368118619,1751029839937,-460.0,0.00019726,2]
[368118620,1751029839947,-460.0,0.00019726,2]
[368118621,1751029839957,-460.0,0.00019726,2]
[368118622,1751029839967,-396.56999128,0.00019726,2]
[368118623,1751029839976,-460.0,0.00019726,2]
[368118624,1751029839986,-460.0,0.00019726,2]
[368118626,1751029839995,-460.0,0.00019726,2]
[368118628,1751029840006,-460.0,0.00019726,2]
[368118630,1751029840015,-872.16,0.00019726,2]
[368118632,1751029840025,-460.0,0.00019726,2]
[368118634,1751029840035,-490.28,0.00019726,2]
[368118636,1751029840044,-460.0,0.00019726,2]
[368118637,1751029840054,-460.0,0.00019726,2]
[368118638,1751029840063,-460.0,0.00019726,2]
[368118639,1751029840073,-460.0,0.00019726,2]
[368118640,1751029840083,-460.0,0.00019726,2]
[368118641,1751029840092,-460.0,0.00019726,2]
[368118643,1751029840102,-676.53,0.00019726,2]
[368118650,1751029840220,-3577.22,0.00019726,2]
[368118651,1751029840231,-460.0,0.00019726,2]
[368118652,1751029840240,-460.0,0.00019726,2]
[368118653,1751029840250,-460.0,0.00019726,2]
[368118654,1751029840260,-460.0,0.00019726,2]
[368118655,1751029840269,-1544.03,0.00019726,2]
[368118656,1751029840278,-460.0,0.00019726,2]
[368118657,1751029840287,-1861.18,0.00019726,2]
[368118658,1751029840297,-2946.71,0.00019726,2]
[368118659,1751029840306,-460.0,0.00019726,2]
[368118660,1751029840315,-460.0,0.00019726,2]
[368118661,1751029840324,-6518.4,0.00019726,2]
[368118662,1751029840334,-460.0,0.00019726,2]
[368118663,1751029840343,-460.0,0.00019726,2]
[368118664,1751029840353,-460.0,0.00019726,2]
[368118665,1751029840363,-1266.37,0.00019726,2]
[368118666,1751029840373,-1132.2,0.00019726,2]
[368118667,1751029840383,-460.0,0.00019726,2]
[368118668,1751029840392,-460.0,0.00019726,2]
[368118669,1751029840401,-765.43,0.00019726,2]
[368118670,1751029840410,-460.0,0.00019726,2]
[368118671,1751029840419,-460.0,0.00019726,2]
[368118672,1751029840428,-460.0,0.00019726,2]
[368118673,1751029840437,-848.57,0.00019726,2]
[368118674,1751029840446,-460.0,0.00019726,2]
[368118675,1751029840456,-5598.03,0.00019726,2]
[368118676,1751029840465,-460.0,0.00019726,2]
[368118677,1751029840474,-807.46,0.00019726,2]
[368118678,1751029840483,-2217.11,0.00019726,2]
[368118679,1751029840492,-851.26,0.00019726,2]
[368118680,1751029840502,-1687.24,0.00019726,2]
[368118681,1751029840511,-464.33,0.00019726,2]
[368118682,1751029840521,-460.0,0.00019726,2]
[368118683,1751029840530,-682.9,0.00019726,2]
[368118684,1751029840539,-460.0,0.00019726,2]
[368118685,1751029840548,-460.0,0.00019726,2]
[368118686,1751029840557,-460.0,0.00019726,2]
[368118687,1751029840567,-460.0,0.00019726,2]
[368118688,1751029840576,-460.0,0.00019726,2]
[368118689,1751029840585,-460.0,0.00019726,2]
[368118690,1751029840595,-460.0,0.00019726,2]
[368118691,1751029840604,-460.0,0.00019726,2]
[368118692,1751029840613,-460.0,0.00019726,2]
[368118693,1751029840622,-460.0,0.00019726,2]
[368118694,1751029840631,-460.0,0.00019726,2]
[368118695,1751029840640,-460.0,0.00019726,2]
[368118696,1751029840650,-460.0,0.00019726,2]
[368118697,1751029840659,-626.65,0.00019726,2]
[368118698,1751029840668,-778.42,0.00019726,2]
[368118699,1751029840677,-1807.73,0.00019726,2]
[368118700,1751029840686,-2700.44,0.00019726,2]
[368118701,1751029840695,-460.0,0.00019726,2]
[368118702,1751029840704,-1046.99,0.00019726,2]
[368118703,1751029840713,-460.0,0.00019726,2]
[368118704,1751029840722,-1874.32,0.00019726,2]
[368118705,1751029840731,-460.0,0.00019726,2]
[368118706,1751029840741,-460.0,0.00019726,2]
[368118707,1751029840750,-460.0,0.00019726,2]
[368118708,1751029840759,-460.0,0.00019726,2]
[368118709,1751029840768,-460.0,0.00019726,2]
[368118710,1751029840778,-460.0,0.00019726,2]
[368118711,1751029840787,-1037.07,0.00019726,2]